[Event "Live Chess"]
[Site "Chess.com"]
[Date "2023.05.21"]
[Round "-"]
[White "Supertromp"]
[Black "ProfPoisson"]
[Result "1-0"]
[WhiteElo "2119"]
[BlackElo "1189"]
[TimeControl "300"]
[EndTime "0:25:34 PDT"]
[Termination "Supertromp won by resignation"]

1. Nf3 {[%clk 0:04:58.4]} 1... f5 {[%clk 0:04:54.5]} 2. g3 {[%clk 0:04:56.7]}
2... d6 {[%clk 0:04:47.7]} 3. Bg2 {[%clk 0:04:55.3]} 3... e5 {[%clk 0:04:46.1]}
4. O-O {[%clk 0:04:54.4]} 4... Nf6 {[%clk 0:04:44.6]} 5. d3 {[%clk 0:04:53.6]}
5... Be7 {[%clk 0:04:41.5]} 6. c4 {[%clk 0:04:50]} 6... O-O {[%clk 0:04:39.8]}
7. Nc3 {[%clk 0:04:49.3]} 7... a5 {[%clk 0:04:29.2]} 8. b3 {[%clk 0:04:47.8]}
8... Qe8 {[%clk 0:04:23.6]} 9. Bb2 {[%clk 0:04:46.2]} 9... Nc6 {[%clk
0:04:13.2]} 10. Nd5 {[%clk 0:04:24.2]} 10... Nxd5 {[%clk 0:04:08.7]} 11. cxd5
{[%clk 0:04:23.3]} 11... Nd4 {[%clk 0:04:01.7]} 12. Nxd4 {[%clk 0:04:21.6]}
12... exd4 {[%clk 0:03:57.4]} 13. Bxd4 {[%clk 0:04:21.5]} 13... f4 {[%clk
0:03:52.4]} 14. Rc1 {[%clk 0:04:19.3]} 14... fxg3 {[%clk 0:03:46]} 15. fxg3
{[%clk 0:04:18]} 15... Rxf1+ {[%clk 0:03:42.2]} 16. Qxf1 {[%clk 0:04:17.9]}
16... c6 {[%clk 0:03:21.4]} 17. dxc6 {[%clk 0:04:14.6]} 17... bxc6 {[%clk
0:03:18.7]} 18. Bxc6 {[%clk 0:04:14.5]} 18... Qh5 {[%clk 0:02:53.1]} 19. Bxa8
{[%clk 0:04:10.9]} 19... Bh3 {[%clk 0:02:50.5]} 20. Bg2 {[%clk 0:03:38.4]} 20...
Bxg2 {[%clk 0:02:29.2]} 21. Qxg2 {[%clk 0:03:38.3]} 21... Qg5 {[%clk 0:02:27.5]}
22. Qd5+ {[%clk 0:03:35.4]} 22... Qxd5 {[%clk 0:02:21.7]} 23. Be3 {[%clk
0:03:26.1]} 23... a4 {[%clk 0:02:10.8]} 24. Rc4 {[%clk 0:03:15.9]} 24... axb3
{[%clk 0:02:07.9]} 25. axb3 {[%clk 0:03:15.8]} 25... Bg5 {[%clk 0:02:02.8]} 26.
Bxg5 {[%clk 0:03:07.8]} 26... Qxg5 {[%clk 0:02:00.8]} 27. b4 {[%clk 0:03:05.5]}
27... Qe3+ {[%clk 0:01:59.1]} 28. Kf1 {[%clk 0:03:04.5]} 28... h5 {[%clk
0:01:53.1]} 29. Re4 {[%clk 0:02:58.5]} 29... Qc1+ {[%clk 0:01:49.6]} 30. Kf2
{[%clk 0:02:57.1]} 30... Kf7 {[%clk 0:01:40.3]} 31. Rc4 {[%clk 0:02:51.3]} 31...
Qg5 {[%clk 0:01:36.4]} 32. h4 {[%clk 0:02:48.4]} 32... Qd5 {[%clk 0:01:29.8]}
33. Re4 {[%clk 0:02:29.5]} 33... Qb7 {[%clk 0:01:18.8]} 34. Ke3 {[%clk
0:02:23.8]} 34... d5 {[%clk 0:01:16.6]} 35. Rf4+ {[%clk 0:02:23.1]} 35... Ke6
{[%clk 0:01:12.7]} 36. Kd2 {[%clk 0:02:20.8]} 36... Ke5 {[%clk 0:01:08.7]} 37.
Ke3 {[%clk 0:02:18.6]} 37... Qb6+ {[%clk 0:01:04.1]} 38. Kf3 {[%clk 0:02:17.4]}
38... d4 {[%clk 0:01:00.7]} 39. e3 {[%clk 0:02:08.8]} 39... Qc6+ {[%clk
0:00:47.7]} 40. Re4+ {[%clk 0:02:06.8]} 40... Kf5 {[%clk 0:00:44.2]} 41. exd4
{[%clk 0:02:05.1]} 41... g5 {[%clk 0:00:36.7]} 42. hxg5 {[%clk 0:02:01.5]} 42...
Kxg5 {[%clk 0:00:34.6]} 43. b5 {[%clk 0:02:01.3]} 43... Qxb5 {[%clk 0:00:31.8]}
44. Re5+ {[%clk 0:02:00.6]} 44... Qxe5 {[%clk 0:00:28]} 45. dxe5 {[%clk
0:01:59.8]} 45... Kf5 {[%clk 0:00:27.9]} 46. d4 {[%clk 0:01:59.1]} 46... Ke6
{[%clk 0:00:25.1]} 47. Ke4 {[%clk 0:01:58.1]} 47... Kd7 {[%clk 0:00:22.6]} 48.
d5 {[%clk 0:01:58]} 1-0

[Event "Live Chess"]
[Site "Chess.com"]
[Date "2023.05.21"]
[Round "-"]
[White "toxic_rabbit"]
[Black "quantum_void"]
[Result "1-0"]
[WhiteElo "1983"]
[BlackElo "1472"]
[TimeControl "300"]
[EndTime "0:26:09 PDT"]
[Termination "toxic_rabbit won by resignation"]

1. e4 {[%clk 0:04:58.9]} 1... e6 {[%clk 0:04:58]} 2. d4 {[%clk 0:04:58.1]} 2...
d5 {[%clk 0:04:57.6]} 3. exd5 {[%clk 0:04:57.4]} 3... exd5 {[%clk 0:04:56.3]} 4.
Nf3 {[%clk 0:04:57.2]} 4... Bd6 {[%clk 0:04:55.3]} 5. Bd3 {[%clk 0:04:56.6]}
5... Ne7 {[%clk 0:04:54.4]} 6. O-O {[%clk 0:04:56.2]} 6... h6 {[%clk 0:04:53.6]}
7. c4 {[%clk 0:04:55.8]} 7... O-O {[%clk 0:04:50.1]} 8. c5 {[%clk 0:04:55]} 8...
Bxc5 {[%clk 0:04:45.4]} 9. dxc5 {[%clk 0:04:54.9]} 9... c6 {[%clk 0:04:43]} 10.
Re1 {[%clk 0:04:51.2]} 10... Re8 {[%clk 0:04:39.8]} 11. Nc3 {[%clk 0:04:49.2]}
11... Bf5 {[%clk 0:04:38.2]} 12. Bxf5 {[%clk 0:04:47.5]} 12... Nxf5 {[%clk
0:04:37.2]} 13. Rxe8+ {[%clk 0:04:47.4]} 13... Qxe8 {[%clk 0:04:36]} 14. Bf4
{[%clk 0:04:45.4]} 14... Nd7 {[%clk 0:04:33.4]} 15. Bd6 {[%clk 0:04:41.6]} 15...
Nxd6 {[%clk 0:04:24.9]} 16. cxd6 {[%clk 0:04:41.5]} 16... Qe6 {[%clk 0:04:23.3]}
17. Qb3 {[%clk 0:04:39.4]} 17... Qxd6 {[%clk 0:04:19]} 18. Qxb7 {[%clk
0:04:35.7]} 18... Rb8 {[%clk 0:04:18]} 19. Qxa7 {[%clk 0:04:33]} 19... Rxb2
{[%clk 0:04:17.6]} 20. Rd1 {[%clk 0:04:20.5]} 20... Nb6 {[%clk 0:03:37.1]} 21.
Na4 {[%clk 0:03:39.5]} 21... Qb4 {[%clk 0:03:21.9]} 22. Nxb2 {[%clk 0:03:28.2]}
1-0

[Event "Live Chess"]
[Site "Chess.com"]
[Date "2023.05.21"]
[Round "-"]
[White "raimundklein"]
[Black "Ian-Morley"]
[Result "1-0"]
[WhiteElo "1752"]
[BlackElo "1068"]
[TimeControl "300"]
[EndTime "0:26:28 PDT"]
[Termination "raimundklein won by resignation"]

1. e4 {[%clk 0:04:57.1]} 1... d5 {[%clk 0:04:59.2]} 2. exd5 {[%clk 0:04:55.7]}
2... Qxd5 {[%clk 0:04:58.5]} 3. Nc3 {[%clk 0:04:53.1]} 3... Qa5 {[%clk
0:04:57.5]} 4. d4 {[%clk 0:04:49.6]} 4... c6 {[%clk 0:04:56.4]} 5. Bc4 {[%clk
0:04:41.9]} 5... Nf6 {[%clk 0:04:54.6]} 6. h3 {[%clk 0:04:39.8]} 6... b5 {[%clk
0:04:50.6]} 7. Bb3 {[%clk 0:04:36.8]} 7... Nbd7 {[%clk 0:04:48.7]} 8. Nf3 {[%clk
0:04:31.9]} 8... Nd5 {[%clk 0:04:47]} 9. Bd2 {[%clk 0:04:29.5]} 9... Nxc3 {[%clk
0:04:46]} 10. Bxc3 {[%clk 0:04:28.3]} 10... b4 {[%clk 0:04:44.4]} 11. Bd2 {[%clk
0:04:24.2]} 11... Qb6 {[%clk 0:04:40.5]} 12. Qe2 {[%clk 0:04:15.3]} 12... a5
{[%clk 0:04:38.5]} 13. Ng5 {[%clk 0:04:03.2]} 13... e6 {[%clk 0:04:22.6]} 14.
Nxe6 {[%clk 0:03:40.7]} 14... fxe6 {[%clk 0:03:51.6]} 15. Qxe6+ {[%clk
0:03:40.6]} 15... Be7 {[%clk 0:03:49.3]} 16. Qf7+ {[%clk 0:03:37]} 16... Kd8
{[%clk 0:03:48.4]} 17. c3 {[%clk 0:03:33.1]} 17... Kc7 {[%clk 0:03:43.5]} 18.
Qxe7 {[%clk 0:03:22.5]} 18... Bb7 {[%clk 0:03:33.6]} 19. Bf4+ {[%clk 0:03:20.3]}
19... Kc8 {[%clk 0:03:30.1]} 20. Be6 {[%clk 0:03:09.8]} 20... Qd8 {[%clk
0:03:28.2]} 21. Qxd8+ {[%clk 0:02:46.7]} 21... Kxd8 {[%clk 0:03:26.4]} 22. O-O
{[%clk 0:02:46.2]} 22... Nf6 {[%clk 0:03:17.8]} 23. Rfe1 {[%clk 0:02:40.2]}
23... Nd5 {[%clk 0:03:16.1]} 24. Bd2 {[%clk 0:02:35.6]} 24... Bc8 {[%clk
0:03:12.7]} 25. Bxc8 {[%clk 0:02:30.1]} 25... Rxc8 {[%clk 0:03:11.6]} 26. c4
{[%clk 0:02:30]} 26... Nf6 {[%clk 0:03:07.8]} 27. Rad1 {[%clk 0:02:27.4]} 27...
Kc7 {[%clk 0:03:06.5]} 28. Bf4+ {[%clk 0:02:25.8]} 28... Kb7 {[%clk 0:03:05.2]}
29. Re7+ {[%clk 0:02:23.4]} 29... Ka8 {[%clk 0:03:02.9]} 30. Rxg7 {[%clk
0:02:21.5]} 30... Rhg8 {[%clk 0:02:57.8]} 31. Rf7 {[%clk 0:02:20.1]} 31... Ne4
{[%clk 0:02:56.3]} 32. f3 {[%clk 0:02:15.8]} 32... Rgf8 {[%clk 0:02:50.8]} 33.
Rxf8 {[%clk 0:02:09.2]} 33... Rxf8 {[%clk 0:02:48.9]} 34. Be5 {[%clk 0:02:05]}
34... Ng5 {[%clk 0:02:40.3]} 35. Kh2 {[%clk 0:02:00.9]} 35... h5 {[%clk
0:02:33.1]} 36. h4 {[%clk 0:01:58.1]} 36... Nf7 {[%clk 0:02:30.2]} 37. f4 {[%clk
0:01:52]} 37... Nxe5 {[%clk 0:02:21.5]} 38. fxe5 {[%clk 0:01:51.9]} 38... Rf2
{[%clk 0:02:20]} 39. Re1 {[%clk 0:01:49.7]} 39... Rxb2 {[%clk 0:02:18.4]} 40. e6
{[%clk 0:01:48.8]} 40... Rf2 {[%clk 0:02:10.8]} 41. e7 {[%clk 0:01:47.6]} 1-0

[Event "Live Chess"]
[Site "Chess.com"]
[Date "2023.05.21"]
[Round "-"]
[White "Vitalii18a"]
[Black "WelshTiger"]
[Result "0-1"]
[WhiteElo "1109"]
[BlackElo "2358"]
[TimeControl "300"]
[EndTime "0:26:38 PDT"]
[Termination "WelshTiger won on time"]

1. e4 {[%clk 0:04:55.1]} 1... c5 {[%clk 0:04:58.4]} 2. c3 {[%clk 0:04:52]} 2...
Nf6 {[%clk 0:04:55.1]} 3. Bd3 {[%clk 0:04:44.5]} 3... e5 {[%clk 0:04:53.2]} 4.
Bc2 {[%clk 0:04:40.4]} 4... Nc6 {[%clk 0:04:51.8]} 5. Nf3 {[%clk 0:04:38.7]}
5... d5 {[%clk 0:04:45.6]} 6. d3 {[%clk 0:04:31.1]} 6... Be7 {[%clk 0:04:43]} 7.
O-O {[%clk 0:04:29.5]} 7... O-O {[%clk 0:04:41.7]} 8. Bg5 {[%clk 0:04:22.7]}
8... d4 {[%clk 0:04:39.3]} 9. cxd4 {[%clk 0:04:14.5]} 9... cxd4 {[%clk
0:04:33.9]} 10. Na3 {[%clk 0:04:04.1]} 10... h6 {[%clk 0:04:29.9]} 11. Bh4
{[%clk 0:04:01.8]} 11... Bxa3 {[%clk 0:04:27.4]} 12. bxa3 {[%clk 0:03:59.9]}
12... Qd6 {[%clk 0:04:26.7]} 13. h3 {[%clk 0:03:30.5]} 13... Nh5 {[%clk
0:04:08.5]} 14. Nh2 {[%clk 0:03:01.9]} 14... Nf4 {[%clk 0:04:00.4]} 15. Bg3
{[%clk 0:02:49.5]} 15... Ng6 {[%clk 0:03:58.5]} 16. Ng4 {[%clk 0:02:46.6]} 16...
Qxa3 {[%clk 0:03:53.2]} 17. Bb3 {[%clk 0:02:38.4]} 17... Qe7 {[%clk 0:03:47.1]}
18. f4 {[%clk 0:02:33]} 18... exf4 {[%clk 0:03:43]} 19. Bxf4 {[%clk 0:02:16.1]}
19... Be6 {[%clk 0:03:39.2]} 20. Bg3 {[%clk 0:01:58.1]} 20... Bxb3 {[%clk
0:03:25.9]} 21. Qxb3 {[%clk 0:01:49.2]} 21... Rad8 {[%clk 0:03:13.7]} 22. Rab1
{[%clk 0:01:46.1]} 22... b6 {[%clk 0:03:13]} 23. Qc4 {[%clk 0:01:38.8]} 23...
Na5 {[%clk 0:03:10.2]} 24. Qb5 {[%clk 0:01:29.6]} 24... Nb7 {[%clk 0:03:07.8]}
25. Rb2 {[%clk 0:01:19.1]} 25... Nc5 {[%clk 0:03:07]} 26. Rbf2 {[%clk 0:01:15]}
26... Qd7 {[%clk 0:02:57.9]} 27. Qc4 {[%clk 0:01:04]} 27... Qe6 {[%clk 0:02:57]}
28. Bc7 {[%clk 0:00:51.8]} 28... Rd7 {[%clk 0:02:43.9]} 29. Bg3 {[%clk 0:00:48]}
29... Qxc4 {[%clk 0:02:40.9]} 30. dxc4 {[%clk 0:00:46.5]} 30... Nxe4 {[%clk
0:02:39.7]} 31. Rf3 {[%clk 0:00:34.7]} 31... Nd2 {[%clk 0:02:36.6]} 32. Rd3
{[%clk 0:00:28.2]} 32... Nxf1 {[%clk 0:02:35.2]} 33. Kxf1 {[%clk 0:00:26.1]}
33... Re8 {[%clk 0:02:32.1]} 34. Nh2 {[%clk 0:00:16.6]} 34... Ne5 {[%clk
0:02:27.6]} 35. Bxe5 {[%clk 0:00:12.7]} 35... Rxe5 {[%clk 0:02:27.5]} 36. Nf3
{[%clk 0:00:11.9]} 36... Re4 {[%clk 0:02:26.9]} 37. Kf2 {[%clk 0:00:09.4]} 37...
f5 {[%clk 0:02:25.1]} 38. g4 {[%clk 0:00:07.2]} 38... g6 {[%clk 0:02:23.9]} 0-1

[Event "Live Chess"]
[Site "Chess.com"]
[Date "2023.05.21"]
[Round "-"]
[White "MJMykh"]
[Black "LutherSullivan"]
[Result "0-1"]
[WhiteElo "1083"]
[BlackElo "2125"]
[TimeControl "300"]
[EndTime "0:26:43 PDT"]
[Termination "LutherSullivan won by resignation"]

1. e4 {[%clk 0:04:58.3]} 1... e5 {[%clk 0:04:52.6]} 2. Nf3 {[%clk 0:04:56.7]}
2... Nc6 {[%clk 0:04:52]} 3. Nc3 {[%clk 0:04:55.3]} 3... Nf6 {[%clk 0:04:50.2]}
4. Bc4 {[%clk 0:04:54.4]} 4... Nxe4 {[%clk 0:04:48.7]} 5. Nxe4 {[%clk
0:04:52.9]} 5... d5 {[%clk 0:04:46.6]} 6. Bd3 {[%clk 0:04:52.8]} 6... dxe4
{[%clk 0:04:45.2]} 7. Bxe4 {[%clk 0:04:52.7]} 7... Bd6 {[%clk 0:04:44.3]} 8.
Bxc6+ {[%clk 0:04:51.6]} 8... bxc6 {[%clk 0:04:43.9]} 9. O-O {[%clk 0:04:51.3]}
9... O-O {[%clk 0:04:38.1]} 10. h3 {[%clk 0:04:50]} 10... e4 {[%clk 0:04:25.6]}
11. Ne1 {[%clk 0:04:45.3]} 11... Qh4 {[%clk 0:04:19]} 12. f3 {[%clk 0:04:40.9]}
12... Qg3 {[%clk 0:04:13.8]} 13. fxe4 {[%clk 0:04:36.8]} 13... Qh2+ {[%clk
0:04:04.7]} 14. Kf2 {[%clk 0:04:35.1]} 14... Bxh3 {[%clk 0:03:52.8]} 15. Qf3
{[%clk 0:04:27.8]} 15... Bc5+ {[%clk 0:03:51.7]} 16. Ke2 {[%clk 0:04:23.7]}
16... Bxg2 {[%clk 0:03:51.2]} 0-1

[Event "Live Chess"]
[Site "Chess.com"]
[Date "2023.05.21"]
[Round "-"]
[White "diana21strabt"]
[Black "chessfiction"]
[Result "0-1"]
[WhiteElo "1708"]
[BlackElo "2352"]
[TimeControl "300"]
[EndTime "0:26:51 PDT"]
[Termination "chessfiction won by resignation"]

1. e4 {[%clk 0:04:58.1]} 1... d5 {[%clk 0:04:58.9]} 2. exd5 {[%clk 0:04:56.9]}
2... c6 {[%clk 0:04:58.4]} 3. dxc6 {[%clk 0:04:55.9]} 3... e5 {[%clk 0:04:57.6]}
4. cxb7 {[%clk 0:04:54.2]} 4... Bxb7 {[%clk 0:04:56.3]} 5. Bb5+ {[%clk
0:04:52.9]} 5... Nc6 {[%clk 0:04:55]} 6. Nf3 {[%clk 0:04:50.6]} 6... Bc5 {[%clk
0:04:54]} 7. O-O {[%clk 0:04:47.7]} 7... Ne7 {[%clk 0:04:46.9]} 8. Nxe5 {[%clk
0:04:43.7]} 8... O-O {[%clk 0:04:45.9]} 9. Bxc6 {[%clk 0:04:37.4]} 9... Nxc6
{[%clk 0:04:44]} 10. Nxc6 {[%clk 0:04:36.2]} 10... Bxc6 {[%clk 0:04:42.6]} 11.
Nc3 {[%clk 0:04:34]} 11... Qg5 {[%clk 0:04:40.2]} 12. g3 {[%clk 0:04:27]} 12...
Qf5 {[%clk 0:04:29.7]} 13. d3 {[%clk 0:04:13.2]} 13... Bf3 {[%clk 0:04:26.5]}
14. Qd2 {[%clk 0:04:04.6]} 14... Qh3 {[%clk 0:04:24.5]} 0-1

[Event "Live Chess"]
[Site "Chess.com"]
[Date "2023.05.21"]
[Round "-"]
[White "ZombieChainsaw"]
[Black "EdenHazard8"]
[Result "1-0"]
[WhiteElo "1873"]
[BlackElo "1948"]
[TimeControl "300"]
[EndTime "0:27:09 PDT"]
[Termination "ZombieChainsaw won by resignation"]

1. e4 {[%clk 0:04:57.7]} 1... e5 {[%clk 0:04:59.4]} 2. Nc3 {[%clk 0:04:55.9]}
2... Nc6 {[%clk 0:04:59.3]} 3. g3 {[%clk 0:04:54.4]} 3... Bc5 {[%clk 0:04:54.5]}
4. Bg2 {[%clk 0:04:53.4]} 4... d6 {[%clk 0:04:54.1]} 5. Na4 {[%clk 0:04:52.2]}
5... Bb6 {[%clk 0:04:52.5]} 6. Nxb6 {[%clk 0:04:51.2]} 6... axb6 {[%clk
0:04:52.4]} 7. Ne2 {[%clk 0:04:49.7]} 7... f5 {[%clk 0:04:47.9]} 8. d3 {[%clk
0:04:48.1]} 8... Nf6 {[%clk 0:04:46.5]} 9. O-O {[%clk 0:04:46.3]} 9... O-O
{[%clk 0:04:41.7]} 10. Bg5 {[%clk 0:04:40.3]} 10... f4 {[%clk 0:04:39.8]} 11.
gxf4 {[%clk 0:04:33.2]} 11... Qe8 {[%clk 0:04:37.2]} 12. Bxf6 {[%clk 0:04:16]}
12... Rxf6 {[%clk 0:04:37.1]} 13. f5 {[%clk 0:04:11.4]} 13... g6 {[%clk
0:04:34.9]} 14. Ng3 {[%clk 0:03:59]} 14... gxf5 {[%clk 0:04:32.4]} 15. Nxf5
{[%clk 0:03:43.6]} 15... Bxf5 {[%clk 0:04:30.9]} 16. exf5 {[%clk 0:03:43.5]}
16... Rxf5 {[%clk 0:04:29.7]} 17. Qg4+ {[%clk 0:03:42.3]} 17... Qg6 {[%clk
0:04:28.1]} 18. Qxg6+ {[%clk 0:03:35.4]} 18... hxg6 {[%clk 0:04:28]} 19. Be4
{[%clk 0:03:09.2]} 19... Rg5+ {[%clk 0:04:20.5]} 20. Kh1 {[%clk 0:03:08.2]}
20... Kg7 {[%clk 0:04:11.6]} 21. a3 {[%clk 0:03:06.2]} 21... Rh8 {[%clk
0:04:09.3]} 22. Rg1 {[%clk 0:03:04]} 22... Rgh5 {[%clk 0:04:06.8]} 23. Rxg6+
{[%clk 0:03:02.2]} 23... Kf7 {[%clk 0:04:02.2]} 24. Rg2 {[%clk 0:03:00.9]} 24...
Nd4 {[%clk 0:03:56.4]} 25. Bg6+ {[%clk 0:02:59.7]} 25... Kf6 {[%clk 0:03:54.9]}
26. Bxh5 {[%clk 0:02:58.9]} 26... Rxh5 {[%clk 0:03:54.8]} 1-0

[Event "Live Chess"]
[Site "Chess.com"]
[Date "2023.05.21"]
[Round "-"]
[White "Singapourfeuj"]
[Black "AttackingSnowLeopard"]
[Result "0-1"]
[WhiteElo "2216"]
[BlackElo "2207"]
[TimeControl "300"]
[EndTime "0:27:15 PDT"]
[Termination "AttackingSnowLeopard won by resignation"]

1. d4 {[%clk 0:04:57.7]} 1... d5 {[%clk 0:04:58.9]} 2. Nf3 {[%clk 0:04:57]} 2...
Nf6 {[%clk 0:04:57.3]} 3. g3 {[%clk 0:04:54.7]} 3... Bf5 {[%clk 0:04:55.7]} 4.
Bg2 {[%clk 0:04:53.9]} 4... e6 {[%clk 0:04:55]} 5. O-O {[%clk 0:04:53.1]} 5...
Be7 {[%clk 0:04:54.6]} 6. c4 {[%clk 0:04:52.1]} 6... O-O {[%clk 0:04:53.4]} 7.
Nh4 {[%clk 0:04:51.3]} 7... Bxb1 {[%clk 0:04:46.5]} 8. Rxb1 {[%clk 0:04:50.1]}
8... c6 {[%clk 0:04:46.2]} 9. cxd5 {[%clk 0:04:48]} 9... cxd5 {[%clk 0:04:45]}
10. Nf3 {[%clk 0:04:43.9]} 10... Nc6 {[%clk 0:04:44]} 11. Bf4 {[%clk 0:04:41.6]}
11... Qb6 {[%clk 0:04:42.1]} 12. e3 {[%clk 0:04:40]} 12... Rac8 {[%clk
0:04:40.7]} 13. a3 {[%clk 0:04:35.4]} 13... Na5 {[%clk 0:04:38.2]} 14. Ne5
{[%clk 0:04:33.4]} 14... Bd6 {[%clk 0:04:31.2]} 15. Bg5 {[%clk 0:04:29.7]} 15...
Ne4 {[%clk 0:04:24]} 16. Bxe4 {[%clk 0:04:26]} 16... dxe4 {[%clk 0:04:22.7]} 17.
Nd7 {[%clk 0:04:24.9]} 17... Qb5 {[%clk 0:04:15.9]} 18. Nxf8 {[%clk 0:04:23.3]}
18... Qxg5 {[%clk 0:04:15.4]} 19. h4 {[%clk 0:04:21.1]} 19... Qb5 {[%clk
0:04:10.1]} 20. b4 {[%clk 0:04:15.8]} 20... Nc4 {[%clk 0:04:05.9]} 21. a4 {[%clk
0:04:14]} 21... Qe8 {[%clk 0:03:59.3]} 22. Nxe6 {[%clk 0:04:09.6]} 22... Qxe6
{[%clk 0:03:53.2]} 23. Rc1 {[%clk 0:04:08.5]} 23... a6 {[%clk 0:03:51.3]} 24.
Qb3 {[%clk 0:04:05.7]} 24... b5 {[%clk 0:03:50]} 25. axb5 {[%clk 0:04:03.4]}
25... axb5 {[%clk 0:03:49]} 26. Rfd1 {[%clk 0:04:02.4]} 26... h5 {[%clk
0:03:45.6]} 27. d5 {[%clk 0:04:01.3]} 27... Qg4 {[%clk 0:03:38.6]} 28. Rd4
{[%clk 0:03:52.3]} 28... Bxg3 {[%clk 0:03:23.3]} 29. fxg3 {[%clk 0:03:51.3]}
29... Qxg3+ {[%clk 0:03:22.4]} 30. Kf1 {[%clk 0:03:49.7]} 30... Nxe3+ {[%clk
0:03:01.5]} 31. Ke2 {[%clk 0:03:48.2]} 31... Rxc1 {[%clk 0:02:57]} 32. Qxe3
{[%clk 0:03:43.9]} 32... Re1+ {[%clk 0:02:50.8]} 33. Kd2 {[%clk 0:03:41.7]}
33... Qxe3+ {[%clk 0:02:50]} 0-1

[Event "Live Chess"]
[Site "Chess.com"]
[Date "2023.05.21"]
[Round "-"]
[White "Crowded_House"]
[Black "Leonid_Starozhilov"]
[Result "0-1"]
[WhiteElo "1662"]
[BlackElo "2646"]
[TimeControl "300"]
[EndTime "0:27:21 PDT"]
[Termination "Leonid_Starozhilov won by resignation"]

1. d4 {[%clk 0:04:59.2]} 1... Nf6 {[%clk 0:04:58.9]} 2. Bg5 {[%clk 0:04:57.6]}
2... c5 {[%clk 0:04:57.9]} 3. c3 {[%clk 0:04:55.2]} 3... Qb6 {[%clk 0:04:56.6]}
4. Qb3 {[%clk 0:04:46.3]} 4... Nc6 {[%clk 0:04:51.5]} 5. Qxb6 {[%clk 0:04:44.2]}
5... axb6 {[%clk 0:04:49.3]} 6. dxc5 {[%clk 0:04:42.7]} 6... bxc5 {[%clk
0:04:48.3]} 7. Bxf6 {[%clk 0:04:41.6]} 7... gxf6 {[%clk 0:04:45.9]} 8. a3 {[%clk
0:04:37.2]} 8... d5 {[%clk 0:04:44.7]} 9. e3 {[%clk 0:04:36]} 9... e5 {[%clk
0:04:41.6]} 10. Bb5 {[%clk 0:04:35.3]} 10... Be6 {[%clk 0:04:39.6]} 11. Nf3
{[%clk 0:04:26.9]} 11... O-O-O {[%clk 0:04:37.1]} 12. Bxc6 {[%clk 0:04:22.3]}
12... bxc6 {[%clk 0:04:35.9]} 13. O-O {[%clk 0:04:09.4]} 13... Rg8 {[%clk
0:04:31]} 14. g3 {[%clk 0:04:04]} 14... h5 {[%clk 0:04:27.7]} 15. Nh4 {[%clk
0:03:59.8]} 15... f5 {[%clk 0:04:25.7]} 16. f4 {[%clk 0:03:46.2]} 16... Be7
{[%clk 0:04:20.1]} 17. Nf3 {[%clk 0:03:29.4]} 17... e4 {[%clk 0:04:17]} 18. Ne5
{[%clk 0:03:25.5]} 18... Kc7 {[%clk 0:04:15.9]} 19. b4 {[%clk 0:03:07.4]} 19...
f6 {[%clk 0:04:12.7]} 20. Nxc6 {[%clk 0:02:59.4]} 20... Kxc6 {[%clk 0:04:09.4]}
21. bxc5 {[%clk 0:02:57.3]} 21... Bxc5 {[%clk 0:04:07]} 22. Kf2 {[%clk
0:02:53.7]} 22... h4 {[%clk 0:04:05.4]} 23. Nd2 {[%clk 0:02:33.6]} 23... hxg3+
{[%clk 0:03:58]} 24. hxg3 {[%clk 0:02:31.8]} 24... Rb8 {[%clk 0:03:56.3]} 25.
Rab1 {[%clk 0:02:30.1]} 25... Rh8 {[%clk 0:03:54.3]} 26. Rh1 {[%clk 0:02:17.8]}
26... Rxh1 {[%clk 0:03:48.9]} 27. Rxh1 {[%clk 0:02:15.2]} 27... Rb2 {[%clk
0:03:47.1]} 28. Ke2 {[%clk 0:02:11.6]} 28... Bxa3 {[%clk 0:03:44.9]} 29. Rh6
{[%clk 0:02:06.1]} 29... Kd7 {[%clk 0:03:41.1]} 30. Rxf6 {[%clk 0:02:03.7]}
30... Rc2 {[%clk 0:03:40.5]} 31. Kd1 {[%clk 0:01:53.2]} 31... Rxc3 {[%clk
0:03:38.5]} 32. Nb1 {[%clk 0:01:52.7]} 32... Rd3+ {[%clk 0:03:37.7]} 33. Kc2
{[%clk 0:01:49.8]} 33... Bb4 {[%clk 0:03:36.4]} 34. Rg6 {[%clk 0:01:39.4]} 34...
d4 {[%clk 0:03:34.6]} 35. exd4 {[%clk 0:01:31.6]} 35... Rxd4 {[%clk 0:03:34.5]}
36. Rg7+ {[%clk 0:01:28.9]} 36... Kd6 {[%clk 0:03:24.3]} 37. Rb7 {[%clk
0:01:20.7]} 37... e3 {[%clk 0:03:22.1]} 38. Rb6+ {[%clk 0:01:15.3]} 38... Ke7
{[%clk 0:03:20.5]} 39. Rb7+ {[%clk 0:01:13.6]} 39... Kf6 {[%clk 0:03:19.1]} 40.
Nc3 {[%clk 0:01:00.6]} 40... Bxc3 {[%clk 0:03:16.8]} 41. Rc7 {[%clk 0:00:57.1]}
41... e2 {[%clk 0:03:15.1]} 42. Rxc3 {[%clk 0:00:53.9]} 42... e1=Q {[%clk
0:03:13.2]} 0-1

[Event "Live Chess"]
[Site "Chess.com"]
[Date "2023.05.21"]
[Round "-"]
[White "chessleanstrategist"]
[Black "Ferrarifan27"]
[Result "0-1"]
[WhiteElo "407"]
[BlackElo "2074"]
[TimeControl "300"]
[EndTime "0:27:54 PDT"]
[Termination "Ferrarifan27 won by resignation"]

1. c4 {[%clk 0:04:58.4]} 1... Nf6 {[%clk 0:04:58.3]} 2. Nf3 {[%clk 0:04:56.4]}
2... e6 {[%clk 0:04:54]} 3. Nc3 {[%clk 0:04:55]} 3... Bb4 {[%clk 0:04:52]} 4. g3
{[%clk 0:04:52.9]} 4... O-O {[%clk 0:04:50.4]} 5. Bg2 {[%clk 0:04:45.9]} 5...
Nc6 {[%clk 0:04:49]} 6. d4 {[%clk 0:04:41.5]} 6... Bxc3+ {[%clk 0:04:46.6]} 7.
bxc3 {[%clk 0:04:39.6]} 7... d6 {[%clk 0:04:44.8]} 8. O-O {[%clk 0:04:37.8]}
8... Qe7 {[%clk 0:04:40.3]} 9. e3 {[%clk 0:04:32.8]} 9... e5 {[%clk 0:04:35.4]}
10. Re1 {[%clk 0:04:31.1]} 10... Bg4 {[%clk 0:04:27.3]} 11. a3 {[%clk
0:04:16.9]} 11... e4 {[%clk 0:04:24.7]} 12. d5 {[%clk 0:03:34.6]} 12... Ne5
{[%clk 0:04:17.3]} 13. Qb3 {[%clk 0:03:13.8]} 13... Nxf3+ {[%clk 0:04:09.1]} 14.
Bxf3 {[%clk 0:03:08.8]} 14... Bxf3 {[%clk 0:04:08.3]} 15. Qxb7 {[%clk
0:03:02.4]} 15... Qd7 {[%clk 0:04:06.8]} 16. Bb2 {[%clk 0:02:40.2]} 16... Qh3
{[%clk 0:04:04.6]} 0-1